bitfinex-derivatives/quotes_ETHF0:USTF0_20250214
["timestamp","ask_amount","ask_price","bid_price","bid_amount"]
[1739499098471,0.73946,2704.3,2704.1,0.00554447]
[1739499098669,3.94728,2704.2,2704.1,0.00554447]
[1739499100277,5.5758,2704.2,2704.1,0.00554447]
[1739499100477,6.31528,2704.2,2704.1,0.00554447]
[1739499100673,5.5758,2704.2,2704.1,0.00554447]
[1739499100977,6.31528,2704.2,2704.1,0.00554447]
[1739499101776,0.73954,2704.0,2703.5,3.2078]
[1739499101972,5.5758,2704.2,2703.5,3.2078]
[1739499102173,0.73957,2703.9,2703.5,3.2078]
[1739499102577,5.5758,2704.2,2703.5,3.2078]
[1739499102782,0.73958,2703.9,2703.5,3.2078]
[1739499103075,3.2078,2703.9,2703.5,3.2078]
[1739499103473,0.7396,2703.8,2703.5,3.2078]
[1739499103874,0.73964,2703.6,2703.4,0.00371026]
[1739499104074,6.29545,2703.6,2703.4,0.00371026]
[1739499104377,5.5558,2703.6,2703.4,0.00371026]
[1739499104682,0.73967,2703.5,2703.4,0.00371026]
[1739499104883,3.94747,2703.5,2703.4,0.00371026]
[1739499105575,0.73981,2703.1,2702.6,3.2078]
[1739499105780,2.342,2703.0,2702.6,3.2078]
[1739499107475,3.08182,2703.0,2702.6,3.2078]
[1739499107785,2.342,2703.0,2702.6,3.2078]
[1739499108082,2.342,2703.0,2702.7,0.4232122]
[1739499108381,3.2078,2703.1,2702.8,0.42342057]
[1739499108582,3.2078,2703.1,2702.6,3.9477]
[1739499108583,0.5243,2703.1,2702.6,3.9477]
[1739499108782,3.69626,2705.1,2702.6,3.9477]
[1739499108783,3.2078,2705.6,2703.3,3.2078]
[1739499108980,0.73928,2705.0,2704.3,3.94725]
[1739499109283,3.2078,2705.3,2704.3,3.94725]
[1739499109284,0.73925,2705.1,2704.4,0.42335522]
[1739499109480,0.73925,2705.1,2704.5,0.42335522]
[1739499109786,0.73926,2705.1,2704.6,0.42335522]
[1739499109984,3.14122,2705.2,2704.4,0.73941]
[1739499110188,0.00554447,2705.1,2704.6,0.00554447]
[1739499110381,0.00554447,2705.1,2704.7,0.42316627]
[1739499110580,0.00554447,2705.1,2704.7,3.2078]
[1739499110779,0.00554447,2705.1,2704.8,1.16244343]
[1739499110985,0.00554447,2705.1,2704.9,0.42308597]
[1739499111184,0.00554447,2705.1,2704.9,0.73928]
[1739499111481,0.00554447,2705.1,2704.8,0.7393]
[1739499111681,0.00554447,2705.1,2704.9,0.42318449]
[1739499111986,0.00554447,2705.1,2704.8,0.7393]
[1739499112183,0.00554447,2705.1,2704.9,0.42317622]
[1739499112384,0.00554447,2705.1,2704.8,0.7393]
[1739499112586,0.00554447,2705.1,2705.0,3.2078]
[1739499113283,0.00554447,2705.1,2704.6,0.00554447]
[1739499113284,0.73926,2705.0,2704.6,3.21334447]
[1739499113482,0.00554447,2705.1,2704.6,3.21334447]
[1739499113677,3.2078,2705.0,2704.6,3.21334447]
[1739499113988,5.5858,2705.0,2704.6,3.21334447]
[1739499115477,2.378,2705.0,2704.6,3.21334447]
[1739499118485,2.378,2705.0,2704.6,3.95269447]
[1739499118785,2.378,2705.0,2704.6,3.21334447]
[1739499119185,2.342,2705.0,2704.6,3.21334447]
[1739499120988,0.00554447,2705.1,2704.9,3.2078]
[1739499122088,0.00554447,2705.1,2705.0,0.73926]
[1739499123193,3.2078,2706.2,2705.1,1.84808]
[1739499123506,3.2078,2706.2,2705.7,0.73905]
[1739499123984,2.319,2706.3,2705.6,3.2078]
[1739499124189,0.73908,2705.7,2705.3,3.2078]
[1739499124590,3.2078,2705.8,2705.3,3.2078]
[1739499124591,3.94685,2705.8,2705.3,3.2078]
[1739499124986,0.7391,2705.6,2705.3,3.2078]
[1739499125188,3.05308,2705.7,2705.3,3.2078]
[1739499125493,2.314,2705.7,2705.3,3.2078]
[1739499125785,3.2078,2705.5,2704.9,3.2078]
[1739499125986,3.2078,2705.5,2704.6,3.21334447]
[1739499126193,3.94694,2705.5,2704.9,3.2078]
[1739499126485,3.2078,2705.5,2704.9,3.2078]
[1739499126685,3.2078,2705.5,2704.6,3.21334447]
[1739499126686,0.73924,2705.1,2704.6,3.21334447]
[1739499126891,2.313,2705.0,2704.6,3.21334447]
[1739499127090,2.313,2704.9,2704.6,3.21334447]
[1739499127488,2.313,2704.9,2704.6,3.95270447]
[1739499128185,2.313,2704.9,2704.6,3.21334447]
[1739499128391,2.313,2704.9,2704.7,0.73933]
[1739499128794,2.313,2704.9,2704.6,3.21334447]
[1739499128985,2.313,2704.9,2704.6,3.95269447]
[1739499129186,2.313,2704.9,2704.6,3.21334447]
[1739499129493,2.313,2704.9,2704.8,0.73931]
[1739499129788,3.2078,2705.5,2705.0,0.73924]
[1739499129789,2.298,2705.3,2705.0,0.73924]
[1739499130891,2.298,2705.3,2704.9,3.2078]
[1739499131289,3.2078,2705.5,2704.9,3.2078]
[1739499131591,2.286,2705.7,2705.3,3.2078]
[1739499131788,2.286,2705.7,2704.6,0.00554447]
[1739499131789,3.2666238,2705.6,2704.7,6.75074464]
[1739499131993,0.7392,2705.3,2704.7,6.75074464]
[1739499132296,3.2078,2705.6,2704.7,6.75074464]
[1739499132494,0.05882606,2705.5,2704.7,6.75074464]
[1739499132794,0.7392,2705.3,2704.7,7.49007464]
[1739499132985,0.73916,2705.4,2704.7,6.75074464]
[1739499133290,0.73921,2705.2,2704.7,6.75074464]
[1739499133495,3.2078,2705.6,2704.7,6.75074464]
[1739499133688,0.05882695,2705.5,2704.7,6.75074464]
[1739499133992,0.7392,2705.3,2704.7,3.2078]
[1739499134197,0.61772695,2705.2,2704.7,3.2078]
[1739499134493,2.271,2705.1,2704.7,3.94713]
[1739499135088,2.271,2705.1,2704.7,3.94712]
[1739499135289,2.271,2705.1,2704.8,0.73931]
[1739499135490,2.271,2705.1,2704.7,3.2078]
[1739499136289,0.05883087,2705.0,2704.6,0.00554447]
[1739499136490,0.63293087,2705.0,2704.6,0.00554447]
[1739499136691,0.79813087,2704.9,2704.6,0.00554447]
[1739499136892,0.05883087,2704.8,2704.6,0.00554447]
[1739499138401,0.05883087,2704.7,2704.6,0.00554447]
[1739499138591,0.05883805,2704.7,2704.6,0.00554447]
[1739499139398,2.252,2705.4,2705.1,0.73922]
[1739499139593,2.252,2705.4,2705.0,6.75074464]
[1739499139802,2.252,2705.4,2705.0,47.55074464]
[1739499139991,2.252,2705.4,2705.0,6.75074464]
[1739499140493,4.52878,2705.7,2705.0,6.75074464]
[1739499140494,3.7897,2705.7,2705.4,0.73914]
[1739499140701,3.2078,2705.7,2705.3,3.54294464]
[1739499140992,0.5828,2707.4,2705.6,8.93357928]
[1739499141194,0.5596,2707.5,2705.4,1.67244892]
[1739499141195,0.05877692,2707.3,2707.2,6.75074464]
[1739499141396,0.5596,2707.5,2707.2,3.2078]
[1739499141694,0.05877034,2707.4,2707.2,3.2078]
[1739499142903,0.05877034,2707.4,2707.0,0.00554447]
[1739499142904,0.73865,2707.3,2707.0,0.00554447]
[1739499143100,0.05877034,2707.2,2707.0,0.00554447]
[1739499143288,3.01169,2707.1,2707.0,0.00554447]
[1739499143601,3.01169,2707.1,2706.6,3.2078]
[1739499143602,2.33177034,2707.1,2706.6,3.2078]
[1739499143897,3.2078,2706.9,2705.9,3.2078]
[1739499144104,3.2078,2706.6,2705.9,3.2078]
[1739499144297,2.278,2706.5,2705.9,3.2078]
[1739499144693,2.278,2706.5,2706.0,0.73899]
[1739499144899,2.278,2706.5,2705.9,3.21334447]
[1739499145098,2.278,2706.5,2706.3,3.2078]
[1739499145398,2.272,2706.9,2706.3,3.2078]
[1739499145603,2.272,2706.9,2706.6,3.94661]
[1739499145902,2.272,2706.9,2706.6,3.2078]
[1739499146404,3.2078,2707.3,2706.6,3.2078]
[1739499146590,2.32478124,2707.2,2706.6,3.2078]
[1739499146795,0.05878124,2707.1,2706.6,3.2078]
[1739499147402,2.262,2707.0,2706.6,3.2078]
[1739499148394,0.00752663,2706.9,2706.6,3.2078]
[1739499150105,0.73879,2706.8,2706.6,3.2078]
[1739499150302,0.00752663,2706.9,2706.4,0.5414]
[1739499150303,0.7388,2706.7,2706.4,0.5414]
[1739499150606,0.73884,2706.6,2706.1,3.2078]
[1739499150805,0.73887,2706.5,2706.1,3.2078]
[1739499151101,3.2078,2706.7,2706.1,3.2078]
[1739499151300,3.2078,2706.7,2706.1,3.94675]
[1739499151500,3.2078,2706.7,2706.1,3.2078]
[1739499151698,3.94661,2706.7,2706.1,3.2078]
[1739499151900,0.0587938,2706.6,2706.1,3.2078]
[1739499152602,0.7976338,2706.6,2706.1,3.2078]
[1739499152801,0.73884,2706.6,2706.1,3.2078]
[1739499153705,0.7976572,2706.5,2706.1,3.2078]
[1739499153910,2.238,2706.4,2706.1,3.2078]
[1739499154099,2.97688,2706.4,2706.1,3.2078]
[1739499154399,0.73892,2706.3,2705.9,0.00554447]
[1739499154605,6.18469,2706.4,2705.9,0.00554447]
[1739499154805,0.05880307,2706.3,2705.9,0.00554447]
[1739499155006,5.4458,2706.4,2705.9,0.00554447]
[1739499155207,6.18469,2706.4,2705.9,0.00554447]
[1739499155408,5.4458,2706.4,2705.9,0.00554447]
[1739499157802,0.73895,2706.2,2705.9,0.00554447]
[1739499158005,5.4458,2706.4,2705.9,0.00554447]
[1739499158213,0.73898,2706.1,2705.9,0.00554447]
[1739499158401,5.4458,2706.4,2705.9,0.00554447]
[1739499158601,0.73899,2706.0,2705.9,0.00554447]
[1739499158806,5.4458,2706.4,2705.9,0.00554447]
[1739499158807,0.73897,2706.1,2705.9,0.00554447]
[1739499158999,4.00560228,2706.0,2705.9,0.00554447]
[1739499159905,3.26661228,2706.0,2705.0,44.74706]
[1739499160111,0.73908,2705.7,2705.0,44.74706]
[1739499160313,2.201,2705.6,2705.1,0.73922]
[1739499160502,2.201,2705.6,2705.0,44.0078]
[1739499160808,3.94705,2705.1,2704.5,3.2078]
[1739499161005,2.199,2705.0,2704.5,3.2078]
[1739499161209,0.79813673,2704.9,2704.6,0.00554447]
[1739499161512,0.7393,2704.9,2704.6,0.00554447]
[1739499161703,2.199,2705.0,2704.6,0.00554447]
[1739499162711,2.93828,2705.0,2704.6,0.00554447]
[1739499163012,0.0588361,2704.9,2704.6,0.00554447]
[1739499163407,0.7981461,2704.9,2704.6,0.00554447]
[1739499163612,2.199,2705.0,2704.6,0.00554447]
[1739499163807,0.05883749,2704.9,2704.6,0.00554447]
[1739499164112,0.79813749,2704.9,2704.6,0.00554447]
[1739499164308,0.05883749,2704.8,2704.6,0.00554447]
[1739499164514,2.199,2705.0,2704.6,0.00554447]
[1739499164709,0.73932,2704.8,2704.6,0.00554447]
[1739499165013,0.73931,2704.9,2704.6,0.00554447]
[1739499165207,0.05883822,2704.8,2704.6,0.00554447]
[1739499165607,0.79813822,2704.9,2704.6,0.00554447]
[1739499165810,0.05883763,2704.8,2704.6,0.00554447]
[1739499166415,0.73929,2704.9,2704.6,0.00554447]
[1739499166619,0.05883692,2704.8,2704.6,0.00554447]
[1739499166813,2.199,2705.0,2704.6,0.00554447]
[1739499167018,0.05883638,2704.9,2704.6,0.00554447]
[1739499167517,0.73934,2704.8,2704.6,0.00554447]
[1739499168514,3.2078,2705.1,2704.9,0.73927]
[1739499168708,3.2078,2705.6,2704.8,3.2078]
[1739499168909,2.23682159,2705.5,2705.1,0.73923]
[1739499169109,2.178,2705.5,2705.1,0.73923]
[1739499169316,2.178,2705.5,2704.8,3.2078]
[1739499169520,2.178,2705.5,2705.1,0.73922]
[1739499169818,2.178,2705.5,2704.8,3.2078]
[1739499170111,2.178,2705.5,2704.9,0.73926]
[1739499170614,2.91712,2705.5,2704.9,0.73926]
[1739499170815,0.7979806,2705.4,2704.8,3.2078]
[1739499171012,2.178,2705.5,2704.8,3.2078]
[1739499171213,0.05882198,2705.4,2704.9,0.73929]
[1739499171514,0.05882198,2705.4,2704.8,3.2078]
[1739499171819,0.79798198,2705.4,2704.8,3.2078]
[1739499172019,2.178,2705.5,2704.7,0.569]
[1739499172319,0.05882484,2705.4,2704.7,0.569]
[1739499172508,0.05882484,2705.4,2704.8,0.7393]
[1739499172714,0.73916,2705.4,2704.8,0.7393]
[1739499172920,0.05882447,2705.3,2704.8,0.7393]
[1739499173224,0.05882447,2705.3,2704.7,1.30833]
[1739499173421,0.05882447,2705.3,2704.7,0.569]
[1739499173714,2.178,2705.5,2704.8,0.7393]
[1739499173917,0.79797356,2705.4,2704.8,0.7393]
[1739499174116,0.73915,2705.4,2704.8,0.7393]
[1739499174418,2.178,2705.5,2704.7,0.569]
[1739499174614,0.79797462,2705.4,2704.7,0.569]
[1739499174918,0.73918,2705.3,2704.7,1.30832]
[1739499175916,0.73919,2705.3,2704.7,1.30833]
[1739499176717,2.178,2705.5,2704.7,1.30833]
[1739499176910,0.73919,2705.3,2704.7,1.30833]
[1739499177918,0.05882781,2705.2,2704.7,1.30833]
[1739499178719,0.79803781,2705.2,2704.7,1.30833]
[1739499178916,3.2078,2704.9,2704.6,0.00554447]
[1739499179109,0.73934,2704.7,2704.6,0.00554447]
[1739499179520,0.79817816,2704.7,2704.6,0.00554447]
[1739499180020,0.73946,2704.3,2703.7,0.02827463]
[1739499180222,2.128,2704.2,2703.7,0.02827463]
[1739499180617,2.128,2704.2,2703.7,0.76787463]
[1739499181116,2.13354447,2704.2,2703.7,0.02827463]
[1739499181718,2.13354447,2704.2,2703.7,0.76786463]
[1739499182022,2.13354447,2704.2,2703.6,3.2078]
[1739499182212,2.87303447,2704.2,2703.6,3.2078]
[1739499182418,2.13354447,2704.2,2703.7,0.73962]
[1739499182720,2.13354447,2704.2,2703.6,3.2078]
[1739499183021,2.87302447,2704.2,2703.6,3.94743]
[1739499183226,2.13354447,2704.2,2703.6,3.2078]
[1739499183416,0.73951,2704.1,2703.6,3.2078]
[1739499183616,3.2078,2704.1,2703.6,3.2078]
[1739499183817,2.13354447,2704.2,2703.7,0.7396]
[1739499184123,2.13354447,2704.2,2703.6,3.94743]
[1739499184823,3.26665482,2704.1,2703.6,3.2078]
[1739499185019,3.2078,2703.7,2702.9,3.94761]
[1739499185217,2.91151816,2703.6,2702.9,3.94761]
[1739499185412,2.113,2703.6,2702.9,47.55338964]
[1739499186023,0.73968,2703.5,2702.9,48.29320964]
[1739499186223,2.85267,2703.6,2703.0,0.7398]
[1739499186426,2.113,2703.6,2702.9,47.55338964]
[1739499186624,2.113,2703.6,2703.1,0.73978]
[1739499186922,2.113,2703.6,2703.4,0.73968]
[1739499187224,2.113,2703.6,2703.2,3.2078]
[1739499187428,0.73971,2703.4,2703.2,3.2078]
[1739499187721,2.113,2703.6,2702.9,47.55338964]
[1739499188022,0.73971,2703.4,2702.9,6.75338964]
[1739499188232,0.73972,2703.4,2702.9,6.75338964]
[1739499188427,2.113,2703.6,2702.9,3.2078]
[1739499188618,0.05887138,2703.5,2702.9,3.2078]
[1739499188813,0.73973,2703.3,2702.9,3.2078]
[1739499189218,2.113,2703.6,2702.9,3.2078]
[1739499189416,0.73969,2703.5,2703.0,0.73981]
[1739499189617,2.113,2703.6,2702.9,3.94763]
[1739499190519,2.113,2703.6,2702.9,3.2078]
[1739499190717,0.73967,2703.5,2703.0,0.73979]
[1739499190926,2.113,2703.6,2703.0,0.73979]
[1739499191121,2.85266,2703.6,2703.0,0.73979]
[1739499191326,2.113,2703.6,2702.9,3.2078]
[1739499191529,2.85266,2703.6,2703.0,0.73979]
[1739499191733,0.73967,2703.5,2702.9,3.2078]
[1739499192026,0.73967,2703.5,2703.0,0.73979]
[1739499192328,0.73967,2703.5,2702.9,3.94762]
[1739499193331,0.73971,2703.4,2702.9,3.2078]
[1739499193527,2.113,2703.6,2702.9,3.2078]
[1739499193727,3.2078,2703.3,2702.9,3.2078]
[1739499193928,0.73978,2703.1,2702.9,3.2078]
[1739499194129,2.085,2703.0,2702.9,3.2078]
[1739499195923,2.085,2703.0,2702.3,6.75338964]
[1739499196226,5.2928,2703.0,2702.3,6.75338964]
[1739499196625,5.2928,2703.0,2702.4,0.73997]
[1739499196824,0.73984,2702.9,2702.4,0.73997]
[1739499197325,0.73984,2702.9,2702.3,6.75338964]
[1739499197531,5.2928,2703.0,2702.3,3.2078]
[1739499197830,5.2928,2703.0,2702.3,3.94778]
[1739499197831,0.73987,2702.8,2702.3,3.94778]
[1739499198430,0.73987,2702.8,2702.3,3.2078]
[1739499198431,0.74541447,2702.8,2702.3,3.2078]
[1739499198837,0.00554447,2702.8,2702.3,3.2078]
[1739499199430,0.00554447,2702.8,2702.4,0.73995]
[1739499199631,0.00554447,2702.8,2702.3,6.09219756]
[1739499200134,0.7399,2702.7,2702.3,6.09219756]
[1739499200432,0.00554447,2702.8,2702.3,6.09219756]
[1739499200729,0.73992,2702.6,2702.3,6.09219756]
[1739499200924,2.059,2702.5,2702.3,3.2078]
[1739499201125,2.79895,2702.5,2702.3,3.2078]
[1739499201719,2.059,2702.5,2702.3,3.2078]
[1739499201926,2.79896,2702.5,2702.3,3.2078]
[1739499202132,2.059,2702.5,2702.3,3.2078]
[1739499203730,2.79895,2702.5,2702.3,3.2078]
[1739499204123,2.059,2702.5,2702.3,3.2078]
[1739499204323,0.73997,2702.4,2702.3,3.2078]
[1739499204525,2.059,2702.5,2702.0,3.42499756]
[1739499205034,0.74002,2702.3,2702.0,3.42499756]
[1739499205236,2.059,2702.5,2702.0,3.42499756]
[1739499205533,0.74,2702.3,2702.0,3.42499756]
[1739499206431,2.059,2702.5,2702.0,3.42499756]
[1739499206630,0.74,2702.3,2702.0,3.42499756]
[1739499206827,0.74004,2702.2,2701.7,6.83234756]
[1739499207336,0.74001,2702.3,2701.8,0.74012]
[1739499207529,0.74007,2702.1,2701.7,6.09219756]
[1739499207829,5.05753,2702.7,2701.7,6.09219756]
[1739499207830,2.032,2702.0,2701.7,6.09219756]
[1739499208134,2.032,2702.0,2701.1,1.85076]
[1739499208135,2.88439756,2701.8,2700.8,3.2078]
[1739499208331,2.034,2701.7,2701.2,3.7632]
[1739499208631,2.034,2701.7,2701.2,4.50348]
[1739499208830,2.034,2701.7,2701.2,6.64759756]
[1739499209030,3.2078,2702.0,2701.2,6.64759756]
[1739499209340,2.033,2701.9,2701.2,6.64759756]
[1739499210030,2.03,2701.8,2701.5,3.62458756]
[1739499210335,2.03,2701.8,2701.5,3.62460756]
[1739499210637,2.03,2701.8,2701.5,2.88439756]
[1739499211227,2.77015,2701.8,2701.5,2.88439756]
[1739499212022,2.77015,2701.8,2701.2,7.38788756]
[1739499212227,2.03,2701.8,2701.2,3.7632]
[1739499212735,2.03,2701.8,2701.4,0.74024]
[1739499212932,2.028,2701.9,2701.6,0.74019]
[1739499213132,2.028,2701.9,2701.5,6.09219756]
[1739499213133,2.76812,2701.9,2701.5,6.09219756]
[1739499213431,2.028,2701.9,2701.2,6.64759756]
[1739499213637,0.74015,2701.8,2701.3,0.74027]
[1739499213839,2.028,2701.9,2701.3,0.74027]
[1739499214133,2.028,2701.9,2701.5,3.2078]
[1739499215037,2.028,2701.9,2701.6,0.74017]
[1739499215335,0.5738,2702.3,2701.8,6.09219756]
[1739499215336,2.02,2702.3,2701.8,6.09219756]
[1739499215533,2.02,2702.3,2701.9,0.5404]
[1739499215733,3.2078,2702.2,2701.9,0.5404]
[1739499216028,3.2078,2702.2,2701.5,44.0078]
[1739499216230,0.74012,2701.9,2701.5,44.0078]
[1739499216437,0.74012,2701.9,2701.5,3.2078]
[1739499216635,0.74014,2701.8,2701.5,3.2078]
[1739499216834,2.017,2701.9,2701.5,3.2078]
[1739499217035,2.75712,2701.9,2701.5,3.2078]
[1739499217334,0.74015,2701.8,2701.5,3.2078]
[1739499217536,0.74014,2701.8,2701.5,3.2078]
[1739499217737,2.017,2701.9,2701.5,3.2078]
[1739499217936,3.2078,2701.8,2701.3,0.5404]
[1739499218136,0.74018,2701.7,2701.3,0.5404]
[1739499218633,2.75712,2701.9,2701.3,1.28067]
[1739499218840,2.017,2701.9,2701.4,0.74023]
[1739499219742,2.017,2701.9,2701.3,0.5404]
[1739499219944,2.017,2701.9,2701.3,1.28066]
[1739499220140,0.74014,2701.8,2701.3,1.28066]
[1739499220338,0.74018,2701.7,2701.3,0.5404]
[1739499220842,0.74015,2701.8,2701.3,0.5404]
[1739499221437,2.017,2701.9,2701.3,0.5404]
[1739499221747,2.017,2701.9,2701.4,0.74023]
[1739499222244,0.00303477,2701.5,2701.4,0.74023]
[1739499222646,0.00303477,2701.5,2701.4,1.16020006]
[1739499223444,0.00303477,2701.5,2701.4,1.16024318]
[1739499224246,0.00303477,2701.5,2701.4,1.8323742]
[1739499224743,0.00303477,2701.5,2701.4,1.16024318]
[1739499225245,0.00303477,2701.5,2701.4,1.83240777]
[1739499225446,2.73212,2701.9,2701.4,1.09217777]
[1739499225646,2.73211,2701.9,2701.7,0.74016]
[1739499225843,2.73211,2701.9,2701.6,0.74017]
[1739499226043,0.74015,2701.8,2701.5,3.2078]
[1739499226242,1.992,2701.9,2701.5,3.2078]
[1739499226547,0.74019,2701.6,2701.5,3.2078]
[1739499226843,0.74025,2701.4,2701.3,0.5404]
[1739499227045,0.74024,2701.5,2701.3,0.5404]
[1739499227242,5.1998,2701.9,2701.2,3.2078]
[1739499227243,0.74027,2701.4,2701.2,3.2078]
[1739499227543,0.5923,2701.8,2701.2,3.2078]
[1739499227846,0.74024,2701.5,2701.2,3.2078]
[1739499228048,1.983,2701.4,2700.9,3.7524]
[1739499228260,0.74035,2701.1,2700.7,0.5569]
[1739499228541,0.5558,2701.3,2700.4,3.9483]
[1739499228746,0.74037,2701.0,2700.6,0.42079126]
[1739499229040,3.2078,2701.3,2700.5,40.8]
[1739499229250,1.98854447,2701.4,2701.1,3.2078]
[1739499229948,1.98854447,2701.4,2701.1,0.74031]
[1739499230140,1.98854447,2701.4,2701.3,0.74027]
[1739499230645,1.98854447,2701.4,2701.3,0.72500246]
[1739499231344,1.98854447,2701.4,2701.1,0.74031]
[1739499231547,1.98854447,2701.4,2701.1,3.94811]
[1739499232548,1.98854447,2701.4,2701.1,3.2078]
[1739499233243,1.98854447,2701.4,2701.1,3.94812]
[1739499234142,1.98854447,2701.4,2701.1,3.2078]
[1739499234738,0.7403,2701.2,2700.3,2.88439756]
[1739499234948,0.74034,2701.1,2700.6,1.16142246]
[1739499235149,3.2078,2701.3,2700.5,3.2078]
[1739499235338,0.74035,2701.1,2700.6,0.74045]
[1739499235651,0.74037,2701.0,2700.5,3.94828]
[1739499235850,1.966,2700.9,2700.5,3.94828]
[1739499236350,1.966,2700.9,2700.6,0.74045]
[1739499236743,1.966,2700.9,2700.5,3.94828]
[1739499237246,1.966,2700.9,2700.5,3.94827]
[1739499237646,1.966,2700.9,2700.5,3.2078]
[1739499237849,1.966,2700.9,2700.6,0.74045]
[1739499238547,1.33443,2701.1,2700.6,0.74045]
[1739499238548,1.954,2700.8,2700.6,0.74045]
[1739499238749,1.954,2700.8,2700.5,3.2078]
[1739499240146,2.69442,2700.8,2700.5,3.2078]
[1739499240350,1.954,2700.8,2700.5,3.2078]
[1739499240551,1.954,2700.8,2700.2,0.572]
[1739499240763,0.74047,2700.6,2700.1,3.94839]
[1739499241152,1.954,2700.8,2700.1,3.2078]
[1739499241451,1.954,2700.8,2700.3,0.74054]
[1739499241753,0.7405,2700.5,2700.1,3.2078]
[1739499241953,1.954,2700.8,2700.1,3.2078]
[1739499242149,0.05894246,2700.7,2700.1,3.2078]
[1739499242448,1.954,2700.8,2700.4,3.9483]
[1739499242646,1.954,2700.8,2700.4,3.2078]
[1739499242845,0.74059,2700.2,2699.7,3.2078]
[1739499243042,1.954,2700.1,2699.4,3.2078]
[1739499243256,1.954,2700.1,2699.6,0.74072]
[1739499243257,2.5386,2700.1,2699.6,0.74072]
[1739499243554,2.5386,2700.1,2699.5,40.8]
[1739499243555,0.00555484,2700.0,2699.7,0.74069]
[1739499243748,0.00555484,2700.0,2699.6,2.88439756]
[1739499244053,0.00555484,2700.0,2699.7,3.9485]
[1739499244749,0.00555484,2700.0,2699.7,3.2078]
[1739499245448,0.74618484,2700.0,2699.7,3.2078]
[1739499246056,0.00555484,2700.0,2699.8,3.2078]
[1739499246250,0.00555484,2700.0,2699.4,44.74857]
[1739499246450,0.00555484,2700.0,2699.7,3.2078]
[1739499247355,0.00555484,2700.0,2699.4,3.2078]
[1739499247659,0.74620484,2700.0,2699.4,3.94858]
[1739499248060,0.00555484,2700.0,2699.5,0.74074]
[1739499248268,1.955,2699.9,2699.6,0.74073]
[1739499248663,1.955,2699.9,2699.4,3.2078]
[1739499248956,1.955,2699.9,2699.8,0.74068]
[1739499249256,1.955,2699.9,2699.7,3.2078]
[1739499250861,1.955,2699.9,2699.7,3.94851]
[1739499251056,0.00555484,2700.0,2699.7,3.2078]
[1739499251258,1.95555484,2700.0,2699.7,3.2078]
[1739499251761,1.95555484,2700.0,2699.7,3.9485]
[1739499252059,1.95555484,2700.0,2699.8,0.74068]
[1739499252262,1.95555484,2700.0,2699.7,3.9485]
[1739499253053,1.95555484,2700.0,2699.7,3.2078]
[1739499253462,1.95555484,2700.0,2699.7,3.9485]
[1739499254660,0.00555484,2700.0,2699.7,3.9485]
[1739499254859,0.00555484,2700.0,2699.7,3.2078]
[1739499255060,0.00555484,2700.0,2699.8,0.74068]
[1739499255952,0.00555484,2700.0,2699.7,3.2078]
[1739499256163,0.00555484,2700.0,2699.7,3.9485]
[1739499256358,0.74619484,2700.0,2699.4,3.2078]
[1739499256565,0.74619484,2700.0,2699.5,0.74075]
[1739499256755,10.29095756,2701.2,2699.5,0.74075]
[1739499256756,5.1438,2700.8,2699.9,2.88439756]
[1739499256956,0.74054,2700.4,2700.0,3.7942]
[1739499257565,3.2078,2700.6,2700.0,3.7942]
[1739499257759,3.2078,2700.6,2700.2,0.74057]
[1739499257959,3.21335484,2700.6,2700.0,3.79975484]
[1739499258159,3.95383484,2700.6,2700.1,0.74059]
[1739499258360,3.21335484,2700.6,2700.0,3.79975484]
[1739499258866,3.95383484,2700.6,2700.1,0.74058]
[1739499259364,0.00555484,2700.6,2700.4,0.74051]
[1739499259569,0.00555484,2700.6,2700.0,3.79975484]
[1739499259960,0.74602484,2700.6,2700.2,0.74056]
[1739499260161,0.00555484,2700.6,2700.0,3.79975484]
[1739499260359,2.67203484,2700.6,2700.1,0.74058]
[1739499260963,2.67202484,2700.6,2700.1,0.74059]
[1739499261971,2.67202484,2700.6,2700.0,0.59195484]
[1739499261972,1.93155484,2700.6,2700.0,3.79975484]
[1739499262165,1.93155484,2700.6,2700.1,0.74058]
[1739499262367,2.67202484,2700.6,2700.1,0.74058]
[1739499262869,1.93155484,2700.6,2700.0,3.79975484]
[1739499263170,0.74056,2700.3,2700.0,3.79975484]
[1739499263369,0.74056,2700.3,2700.0,3.21335484]
[1739499263561,0.5509,2700.2,2700.0,0.00555484]
[1739499263767,1.917,2700.1,2700.0,0.00555484]
[1739499264570,0.5509,2700.2,2700.0,0.00555484]
[1739499264875,1.915,2700.2,2700.1,0.74058]
[1739499266772,0.7405,2700.5,2700.1,0.74058]
[1739499266972,0.7405,2700.5,2700.0,0.00555484]
[1739499266973,1.909,2700.4,2700.2,0.74056]
[1739499267375,1.909,2700.4,2700.1,0.74059]
[1739499268075,0.00555484,2700.6,2700.4,0.74051]
[1739499268278,1.905,2700.5,2700.3,0.74054]
[1739499268666,1.905,2700.5,2700.4,0.74052]
[1739499268965,0.00555484,2700.6,2700.3,0.74053]
[1739499268966,1.90855484,2700.6,2700.3,0.74053]
[1739499269165,1.90855484,2700.6,2700.1,3.7721]
[1739499269676,1.90855484,2700.6,2700.2,0.74055]
[1739499270175,2.64903484,2700.6,2700.2,0.74055]
[1739499270577,2.64903484,2700.6,2700.2,0.74057]
[1739499271173,1.90855484,2700.6,2700.4,0.74051]
[1739499272268,1.90855484,2700.6,2700.4,0.74052]
[1739499272681,1.90855484,2700.6,2700.1,3.7721]
[1739499272880,1.90855484,2700.6,2700.4,0.74049]
[1739499273272,1.90855484,2700.6,2700.5,0.74049]
[1739499274979,0.00555484,2700.6,2700.5,0.74049]
[1739499276774,0.00555484,2700.6,2700.1,3.7721]
[1739499276979,0.00555484,2700.6,2700.3,0.74053]